bitfinex-derivatives/quotes_BTCF0:USTF0_20251220
["timestamp","ask_amount","ask_price","bid_price","bid_amount"]
[1766274976649,0.0396336,88429.0,88412.0,0.00012305]
[1766274983466,0.011314,88426.0,88412.0,3.05e-06]
[1766274983661,0.0113141,88425.0,88412.0,3.05e-06]
[1766274984462,9.36e-05,88424.0,88412.0,3.05e-06]
[1766274984663,0.02832,88423.0,88412.0,3.05e-06]
[1766274985759,0.02832,88423.0,88411.0,0.00013266]
[1766274995372,0.02828,88423.0,88411.0,0.00013266]
[1766275000373,0.02828,88423.0,88411.0,0.01144846]
[1766275006281,0.02828,88423.0,88411.0,2.66e-06]
[1766275013580,0.17528635,88421.0,88392.0,0.08139321]
[1766275013880,0.02461872,88420.0,88398.0,0.0113174]
[1766275014088,0.02461872,88419.0,88401.0,0.0113171]
[1766275014285,0.02828,88423.0,88401.0,0.0113171]
[1766275014580,0.0246112,88422.0,88403.0,0.00016961]
[1766275014789,0.02478081,88421.0,88403.0,0.00016961]
[1766275014985,0.0246112,88420.0,88403.0,0.00016961]
[1766275017487,0.00016961,88421.0,88403.0,0.00016961]
[1766275018187,0.02460276,88420.0,88403.0,0.00016961]
[1766275018489,0.00016961,88421.0,88403.0,0.00016961]
[1766275020593,0.00016961,88421.0,88407.0,0.0113162]
[1766275022491,1e-08,88421.0,88412.0,0.0113156]
[1766275022694,0.17528635,88460.0,88417.0,0.0113151]
[1766275022695,0.0113119,88442.0,88417.0,0.0113151]
[1766275022898,0.05291422,88441.0,88417.0,0.0113151]
[1766275023196,0.02459422,88440.0,88417.0,0.0113151]
[1766275023492,0.02459422,88439.0,88417.0,0.0113151]
[1766275023693,0.02459422,88438.0,88417.0,0.0113151]
[1766275023878,0.00016961,88436.0,88419.0,0.00016961]
[1766275024083,0.02459422,88435.0,88419.0,0.00016961]
[1766275024279,0.02459422,88434.0,88419.0,0.00016961]
[1766275024494,0.02459422,88433.0,88419.0,0.00016961]
[1766275024697,0.02459422,88432.0,88419.0,0.00016961]
[1766275024994,0.02459422,88431.0,88419.0,0.00016961]
[1766275025190,0.02459422,88430.0,88419.0,0.00016961]
[1766275025488,0.02459422,88429.0,88419.0,0.00016961]
[1766275025688,0.00016961,88436.0,88419.0,0.00016961]
[1766275025890,0.02482712,88435.0,88419.0,0.00016961]
[1766275026085,0.02482712,88434.0,88419.0,0.00016961]
[1766275026297,0.02482712,88433.0,88419.0,0.00016961]
[1766275026598,0.02482712,88432.0,88419.0,0.00016961]
[1766275026799,0.02482712,88431.0,88419.0,0.00016961]
[1766275027000,0.02482712,88430.0,88419.0,0.00016961]
[1766275027201,0.02482712,88429.0,88419.0,0.00016961]
[1766275027398,0.00016961,88436.0,88419.0,0.17538975]
[1766275027399,0.02482712,88428.0,88419.0,0.17538975]
[1766275027699,0.00016961,88436.0,88419.0,0.17538975]
[1766275027902,0.0248266,88435.0,88419.0,0.17538975]
[1766275028100,0.0248266,88434.0,88419.0,0.17538975]
[1766275028302,0.0248266,88433.0,88419.0,0.17538975]
[1766275028511,0.0248266,88432.0,88419.0,0.17538975]
[1766275028692,0.0248266,88431.0,88420.0,0.0113147]
[1766275028893,0.0248266,88430.0,88420.0,0.0113147]
[1766275029092,0.00016961,88436.0,88420.0,0.0113147]
[1766275029093,0.0248266,88429.0,88420.0,0.0113147]
[1766275029398,0.00016961,88436.0,88420.0,0.0113147]
[1766275029696,0.02482599,88435.0,88420.0,0.0113147]
[1766275030001,0.00016961,88436.0,88420.0,0.0113147]
[1766275030002,0.02482599,88434.0,88420.0,0.0113147]
[1766275030203,0.02482599,88433.0,88420.0,0.0113147]
[1766275030402,0.02482599,88432.0,88420.0,0.0113147]
[1766275030604,0.02482599,88431.0,88420.0,0.0113147]
[1766275030806,0.02482599,88430.0,88420.0,0.0113147]
[1766275031004,0.02482599,88429.0,88420.0,0.0113147]
[1766275031298,0.00016961,88436.0,88420.0,0.0113147]
[1766275031506,0.02482484,88435.0,88420.0,0.0113147]
[1766275031699,0.02482484,88434.0,88420.0,0.0113147]
[1766275031906,0.02482484,88433.0,88420.0,0.0113147]
[1766275032106,0.02482484,88432.0,88420.0,0.0113147]
[1766275032297,0.02482484,88431.0,88420.0,0.0113147]
[1766275032498,0.02482484,88430.0,88420.0,0.0113147]
[1766275032698,0.00016961,88436.0,88420.0,0.0113147]
[1766275032900,0.02482375,88435.0,88420.0,0.0113147]
[1766275033102,0.02482375,88434.0,88419.0,0.17538975]
[1766275033296,0.02482375,88433.0,88419.0,0.17538975]
[1766275033503,0.02482375,88432.0,88419.0,0.17538975]
[1766275033700,0.02482375,88431.0,88419.0,0.18670455]
[1766275034001,0.02482375,88430.0,88419.0,0.18670455]
[1766275034205,0.02482375,88429.0,88419.0,0.18670455]
[1766275034406,0.00016961,88436.0,88419.0,0.18670455]
[1766275034608,0.02482252,88435.0,88419.0,0.18670455]
[1766275034801,0.02482252,88434.0,88419.0,0.18670455]
[1766275035010,0.02482252,88433.0,88419.0,0.18670455]
[1766275035310,0.02482252,88432.0,88419.0,0.18670455]
[1766275035605,0.02482252,88431.0,88419.0,0.18670455]
[1766275035807,0.02482252,88430.0,88419.0,0.17538975]
[1766275036111,0.00016961,88436.0,88420.0,0.0113146]
[1766275040710,0.00016961,88436.0,88419.0,0.02848961]
[1766275041398,0.17522014,88430.0,88419.0,0.02848961]
[1766275043413,0.0113131,88433.0,88419.0,0.02848961]
[1766275045511,0.0113131,88433.0,88419.0,0.00016961]
[1766275046914,0.00016961,88436.0,88419.0,0.00016961]
[1766275047305,0.0113128,88435.0,88419.0,0.00016961]
[1766275048113,0.02470788,88434.0,88419.0,0.00016961]
[1766275048305,0.02470788,88433.0,88419.0,0.00016961]
[1766275048505,0.0113128,88435.0,88419.0,0.00016961]
[1766275048814,0.02471081,88434.0,88419.0,0.00016961]
[1766275049001,0.02471081,88433.0,88419.0,0.00016961]
[1766275049207,0.02832,88433.0,88419.0,0.00016961]
[1766275051215,0.02471919,88432.0,88419.0,0.00016961]
[1766275051518,0.02832,88433.0,88419.0,0.00016961]
[1766275051708,0.02471919,88432.0,88419.0,0.00016961]
[1766275051909,0.02832,88433.0,88419.0,0.00016961]
[1766275052109,0.02471919,88432.0,88419.0,0.00016961]
[1766275052309,0.02832,88433.0,88419.0,0.00016961]
[1766275052509,0.02472483,88432.0,88419.0,0.00016961]
[1766275052710,0.02832,88433.0,88419.0,0.00016961]
[1766275052911,0.02472483,88432.0,88419.0,0.00016961]
[1766275053113,0.02832,88433.0,88419.0,0.00016961]
[1766275053313,0.02472552,88432.0,88419.0,0.00016961]
[1766275053515,0.02832,88433.0,88419.0,0.00016961]
[1766275053714,0.02472552,88432.0,88419.0,0.00016961]
[1766275053910,0.02832,88433.0,88419.0,0.00016961]
[1766275054119,0.02472552,88432.0,88419.0,0.00016961]
[1766275054320,0.02832,88433.0,88419.0,0.00016961]
[1766275054520,0.02469882,88432.0,88419.0,0.00016961]
[1766275054721,0.02832,88433.0,88419.0,0.00016961]
[1766275054922,0.02469882,88432.0,88419.0,0.00016961]
[1766275055121,0.02832,88433.0,88419.0,0.00016961]
[1766275055321,0.02469941,88432.0,88419.0,0.00016961]
[1766275055522,0.02832,88433.0,88419.0,0.00016961]
[1766275055723,0.02469972,88432.0,88419.0,0.00016961]
[1766275056024,0.02832,88433.0,88419.0,0.00016961]
[1766275056226,0.02470011,88432.0,88419.0,0.00016961]
[1766275056526,0.02832,88433.0,88419.0,0.00016961]
[1766275056727,0.02470011,88432.0,88419.0,0.00016961]
[1766275056922,0.02832,88433.0,88419.0,0.00016961]
[1766275057119,0.02470011,88432.0,88415.0,0.0113153]
[1766275057423,0.02470011,88431.0,88415.0,0.0113153]
[1766275057625,0.02832,88433.0,88415.0,0.0113153]
[1766275057814,0.02470117,88432.0,88415.0,0.0113153]
[1766275058014,0.02470117,88431.0,88415.0,0.01148491]
[1766275058221,0.02832,88433.0,88415.0,0.01148491]
[1766275058423,0.02470225,88432.0,88415.0,0.01148491]
[1766275058612,0.02470225,88431.0,88415.0,0.01148491]
[1766275058815,0.02832,88433.0,88415.0,0.01148491]
[1766275059014,0.0247021,88432.0,88415.0,0.01148491]
[1766275059220,0.0247021,88431.0,88415.0,0.01148491]
[1766275059515,0.02832,88433.0,88418.0,0.0113149]
[1766275059717,0.02470328,88432.0,88418.0,0.0113149]
[1766275059921,0.02470328,88431.0,88418.0,0.0113149]
[1766275060226,0.02832,88433.0,88418.0,0.0113149]
[1766275060427,0.02470443,88432.0,88418.0,0.0113149]
[1766275060626,0.02470443,88431.0,88418.0,0.0113149]
[1766275060829,0.02832,88433.0,88418.0,0.0113149]
[1766275061128,0.02470442,88432.0,88418.0,0.0113149]
[1766275061330,0.02470442,88431.0,88418.0,0.0113149]
[1766275061528,0.02832,88433.0,88418.0,0.0113149]
[1766275061728,0.02470566,88432.0,88418.0,0.0113149]
[1766275061929,0.02470566,88431.0,88418.0,0.0113149]
[1766275062228,0.02832,88433.0,88418.0,0.0113149]
[1766275062431,0.0247064,88432.0,88418.0,0.0113149]
[1766275062629,0.0247064,88431.0,88418.0,0.0113149]
[1766275062821,0.02832,88433.0,88418.0,0.0113149]
[1766275063017,0.0247064,88432.0,88418.0,0.0113149]
[1766275063218,0.0247064,88431.0,88418.0,0.0113149]
[1766275063423,0.02832,88433.0,88418.0,0.0113149]
[1766275063724,0.02470727,88432.0,88418.0,0.0113149]
[1766275064023,0.02470727,88431.0,88418.0,0.0113149]
[1766275064224,0.02832,88433.0,88418.0,0.0113149]
[1766275064424,0.02470847,88432.0,88418.0,0.0113149]
[1766275064623,0.02470847,88431.0,88421.0,0.0113145]
[1766275064825,0.02832,88433.0,88421.0,0.0113145]
[1766275065026,0.02470846,88432.0,88421.0,0.0113145]
[1766275065227,0.02470846,88431.0,88421.0,0.0113145]
[1766275065431,0.02832,88433.0,88421.0,0.0113145]
[1766275065728,0.02470992,88432.0,88421.0,0.0113145]
[1766275065935,0.02470992,88431.0,88421.0,0.0113145]
[1766275066134,0.02832,88433.0,88421.0,0.0113145]
[1766275066335,0.02471213,88432.0,88421.0,0.0113145]
[1766275066536,0.02471213,88431.0,88421.0,0.0113145]
[1766275066737,0.02832,88433.0,88421.0,0.0113145]
[1766275066936,0.02471212,88432.0,88421.0,0.0113145]
[1766275067130,0.02471212,88431.0,88421.0,0.0113145]
[1766275067429,0.02832,88433.0,88421.0,0.0113145]
[1766275067630,0.02471245,88432.0,88421.0,0.0113145]
[1766275067830,0.02471245,88431.0,88421.0,0.0113145]
[1766275068031,0.02832,88433.0,88421.0,0.0113145]
[1766275068232,0.02471305,88432.0,88421.0,0.0113145]
[1766275068532,0.02471305,88431.0,88421.0,0.0113145]
[1766275068732,0.02832,88433.0,88421.0,0.0113145]
[1766275068933,0.02471305,88432.0,88421.0,0.0113145]
[1766275069133,0.02471305,88431.0,88421.0,0.0113145]
[1766275069337,0.02832,88433.0,88421.0,0.0113145]
[1766275069541,0.02471377,88432.0,88421.0,0.0113145]
[1766275069740,0.02471377,88431.0,88421.0,0.0113145]
[1766275069944,0.02832,88434.0,88421.0,0.0113145]
[1766275070141,0.02471377,88433.0,88421.0,0.0113145]
[1766275070441,0.02471377,88432.0,88421.0,0.0113145]
[1766275070742,0.02471377,88431.0,88421.0,0.0113145]
[1766275070940,0.02832,88434.0,88421.0,0.0113145]
[1766275071141,0.02471473,88433.0,88421.0,0.0113145]
[1766275071340,0.02471473,88432.0,88421.0,0.0113145]
[1766275071540,0.02471473,88431.0,88421.0,0.0113145]
[1766275071843,0.02832,88434.0,88421.0,0.0113145]
[1766275072045,0.02471541,88433.0,88421.0,0.0113145]
[1766275072341,0.02471541,88432.0,88421.0,0.0113145]
[1766275072539,0.02471541,88431.0,88421.0,0.0113145]
[1766275072742,0.02832,88434.0,88421.0,0.0113145]
[1766275073042,0.02471532,88433.0,88421.0,0.0113145]
[1766275073234,0.02471532,88432.0,88421.0,0.0113145]
[1766275073436,0.02471532,88431.0,88421.0,0.0113145]
[1766275073744,0.02832,88434.0,88421.0,0.0113145]
[1766275073945,0.02471523,88433.0,88421.0,0.0113145]
[1766275074145,0.02471523,88432.0,88421.0,0.0113145]
[1766275074346,0.02471523,88431.0,88421.0,0.0113145]
[1766275074546,0.02832,88434.0,88421.0,0.0113145]
[1766275074846,0.02471515,88433.0,88421.0,0.0113145]
[1766275075035,0.02471515,88432.0,88421.0,0.0113145]
[1766275075238,0.02471515,88431.0,88421.0,0.0113145]
[1766275075442,0.02832,88434.0,88421.0,0.0113145]
[1766275075644,0.0247151,88433.0,88421.0,0.0113145]
[1766275075843,0.0247151,88432.0,88421.0,0.0113145]
[1766275076036,0.0247151,88431.0,88421.0,0.0113145]
[1766275076238,0.02832,88434.0,88421.0,0.0113145]
[1766275076439,0.02471503,88433.0,88416.0,0.0113152]
[1766275076648,0.02471503,88432.0,88416.0,0.0113152]
[1766275076850,0.02471503,88431.0,88416.0,0.0113152]
[1766275077149,0.02832,88434.0,88416.0,0.0113152]
[1766275077344,0.024715,88433.0,88416.0,0.0113152]
[1766275077546,0.024715,88432.0,88416.0,0.0113152]
[1766275077845,0.024715,88431.0,88416.0,0.0113152]
[1766275078041,0.02832,88433.0,88416.0,0.0113152]
[1766275078249,0.02471496,88432.0,88416.0,0.0113152]
[1766275078547,0.02471496,88431.0,88416.0,0.0113152]
[1766275078748,0.02832,88433.0,88416.0,0.0113152]
[1766275078947,0.02471497,88432.0,88416.0,0.0113152]
[1766275079147,0.02471497,88431.0,88416.0,0.0113152]
[1766275079350,0.02832,88433.0,88416.0,0.0113152]
[1766275079541,0.02471499,88432.0,88416.0,0.0113152]
[1766275079741,0.02471499,88431.0,88415.0,0.00016961]
[1766275080038,0.02832,88433.0,88415.0,0.00016961]
[1766275080241,0.024715,88432.0,88415.0,0.00016961]
[1766275080439,0.02832,88433.0,88415.0,0.00016961]
[1766275080646,0.02471436,88432.0,88415.0,0.00016961]
[1766275080844,0.02832,88433.0,88415.0,0.00016961]
[1766275081052,0.02471436,88432.0,88415.0,0.00016961]
[1766275081351,0.02832,88433.0,88415.0,0.00016961]
[1766275081551,0.02471399,88432.0,88415.0,0.00016961]
[1766275081850,0.02832,88433.0,88415.0,0.00016961]
[1766275082053,0.02471399,88432.0,88415.0,0.00016961]
[1766275082247,0.02832,88433.0,88415.0,0.00016961]
[1766275082546,0.02471372,88432.0,88415.0,0.01148491]
[1766275082747,0.02832,88433.0,88415.0,0.01148491]
[1766275082947,0.02471372,88432.0,88415.0,0.01148491]
[1766275083146,0.02832,88433.0,88415.0,0.01148491]
[1766275083346,0.02471347,88432.0,88415.0,0.01148491]
[1766275083547,0.02832,88433.0,88415.0,0.01148491]
[1766275083747,0.02471347,88432.0,88415.0,0.01148491]
[1766275083948,0.02832,88433.0,88415.0,0.01148491]
[1766275084154,0.02471347,88432.0,88415.0,0.01148491]
[1766275084452,0.02832,88433.0,88415.0,0.01148491]
[1766275084654,0.02468854,88432.0,88415.0,0.01148491]
[1766275084853,0.02832,88433.0,88415.0,0.01148491]
[1766275085054,0.02468855,88432.0,88415.0,0.01148491]
[1766275085249,0.02832,88433.0,88415.0,0.01148491]
[1766275085455,0.02468848,88432.0,88419.0,0.0113148]
[1766275085654,0.02832,88433.0,88419.0,0.0113148]
[1766275085854,0.02468848,88432.0,88419.0,0.0113148]
[1766275086054,0.02832,88433.0,88419.0,0.0113148]
[1766275086454,0.02468844,88432.0,88419.0,0.0113148]
[1766275086655,0.02832,88433.0,88419.0,0.0113148]
[1766275086856,0.02468844,88432.0,88419.0,0.0113148]
[1766275087155,0.02832,88433.0,88419.0,0.0113148]
[1766275087353,0.02468844,88432.0,88419.0,0.0113148]
[1766275087557,0.02832,88433.0,88419.0,0.0113148]
[1766275087756,0.02468844,88432.0,88419.0,0.0113148]
[1766275087951,0.02832,88433.0,88419.0,0.0113148]
[1766275088151,0.02468844,88432.0,88419.0,0.0113148]
[1766275088351,0.02832,88433.0,88419.0,0.0113148]
[1766275088558,0.02468858,88432.0,88419.0,0.0113148]
[1766275088755,0.02832,88433.0,88419.0,0.0113148]
[1766275088957,0.02468858,88432.0,88419.0,0.0113148]
[1766275089151,0.02832,88433.0,88419.0,0.0113148]
[1766275089350,0.02468867,88432.0,88419.0,0.0113148]
[1766275089550,0.02832,88433.0,88419.0,0.0113148]
[1766275089751,0.02468867,88432.0,88419.0,0.0113148]
[1766275089953,0.02832,88433.0,88419.0,0.0113148]
[1766275090154,0.02468867,88432.0,88419.0,0.0113148]
[1766275090353,0.02832,88433.0,88419.0,0.0113148]
[1766275090552,0.02468875,88432.0,88419.0,0.0113148]
[1766275090757,0.02832,88433.0,88419.0,0.0113148]
[1766275090952,0.02468875,88432.0,88419.0,0.0113148]
[1766275091152,0.02832,88433.0,88415.0,0.00016961]
[1766275091356,0.02468883,88432.0,88415.0,0.00016961]
[1766275091559,0.02832,88433.0,88415.0,0.00016961]
[1766275091757,0.02468883,88432.0,88415.0,0.00016961]
[1766275091957,0.02832,88433.0,88415.0,0.00016961]
[1766275092154,0.02468883,88432.0,88422.0,0.0113144]
[1766275092354,0.02832,88433.0,88418.0,0.0113149]
[1766275092651,0.02468897,88432.0,88418.0,0.0113149]
[1766275092859,0.02832,88433.0,88418.0,0.0113149]
[1766275093057,0.02468897,88432.0,88418.0,0.0113149]
[1766275093257,0.02832,88433.0,88418.0,0.0113149]
[1766275093458,0.02468911,88432.0,88418.0,0.0113149]
[1766275093653,0.02832,88433.0,88418.0,0.0113149]
[1766275093854,0.02468911,88432.0,88418.0,0.0113149]
[1766275094053,0.02832,88433.0,88418.0,0.0113149]
[1766275094249,0.02468924,88432.0,88418.0,0.0113149]
[1766275094458,0.02832,88433.0,88418.0,0.0113149]
[1766275094653,0.02468924,88432.0,88418.0,0.0113149]
[1766275094857,0.02832,88433.0,88418.0,0.0113149]
[1766275095055,0.02468924,88432.0,88418.0,0.0113149]
[1766275095258,0.02832,88433.0,88418.0,0.0113149]
[1766275095458,0.02468928,88432.0,88418.0,0.0113149]
[1766275095756,0.02832,88433.0,88418.0,0.0113149]
[1766275095957,0.02468928,88432.0,88418.0,0.0113149]
[1766275096156,0.02832,88433.0,88418.0,0.0113149]
[1766275096360,0.02468933,88432.0,88418.0,0.0113149]
[1766275096554,0.02832,88433.0,88418.0,0.0113149]
[1766275096754,0.02468933,88432.0,88418.0,0.0113149]
[1766275097051,0.02832,88433.0,88418.0,0.0113149]
[1766275097254,0.02468937,88432.0,88418.0,0.0113149]
[1766275097455,0.02832,88433.0,88418.0,0.0113149]
[1766275097663,0.02468936,88432.0,88418.0,0.0113149]
[1766275097863,0.02832,88433.0,88418.0,0.0113149]
[1766275098063,0.02468936,88432.0,88418.0,0.0113149]
[1766275098264,0.02832,88433.0,88418.0,0.0113149]
[1766275098463,0.02468941,88432.0,88418.0,0.0113149]
[1766275098764,0.02832,88433.0,88418.0,0.0113149]
[1766275099062,0.02468941,88432.0,88418.0,0.0113149]
[1766275099361,0.02832,88433.0,88418.0,0.0113149]
[1766275099562,0.02468945,88432.0,88418.0,0.0113149]
[1766275099758,0.02832,88433.0,88418.0,0.0113149]
[1766275099959,0.02468945,88432.0,88418.0,0.0113149]
[1766275100262,0.02832,88433.0,88418.0,0.0113149]
[1766275100451,0.02468951,88432.0,88418.0,0.0113149]
[1766275100655,0.02832,88433.0,88418.0,0.0113149]
[1766275100851,0.02468951,88432.0,88418.0,0.0113149]
[1766275101052,0.02832,88433.0,88418.0,0.0113149]
[1766275101258,0.02468956,88432.0,88418.0,0.0113149]
[1766275101464,0.02832,88433.0,88418.0,0.0113149]
[1766275101665,0.02468958,88432.0,88418.0,0.0113149]
[1766275101868,0.02832,88433.0,88418.0,0.0113149]
[1766275102069,0.02468958,88432.0,88418.0,0.0113149]
[1766275102258,0.02832,88433.0,88418.0,0.0113149]
[1766275102454,0.02468968,88432.0,88418.0,0.0113149]
[1766275102658,0.02832,88433.0,88418.0,0.0113149]
[1766275102859,0.02468968,88432.0,88418.0,0.0113149]
[1766275103059,0.02832,88433.0,88418.0,0.0113149]
[1766275103268,0.02468979,88432.0,88418.0,0.0113149]
[1766275103463,0.02832,88433.0,88418.0,0.0113149]
[1766275103663,0.02468979,88432.0,88418.0,0.0113149]
[1766275103964,0.02832,88433.0,88418.0,0.0113149]
[1766275104166,0.02468979,88432.0,88418.0,0.0113149]
[1766275104366,0.02832,88433.0,88418.0,0.0113149]
[1766275104563,0.02468994,88432.0,88418.0,0.0113149]
[1766275104765,0.02832,88433.0,88418.0,0.0113149]
[1766275104968,0.02468994,88432.0,88418.0,0.0113149]
[1766275105266,0.02832,88433.0,88418.0,0.0113149]
[1766275105469,0.02469011,88432.0,88418.0,0.0113149]
[1766275105667,0.02832,88433.0,88418.0,0.0113149]
[1766275105968,0.02469009,88432.0,88418.0,0.0113149]
[1766275106171,0.02832,88433.0,88418.0,0.0113149]
[1766275106370,0.02469028,88432.0,88418.0,0.0113149]
[1766275106561,0.02832,88433.0,88418.0,0.0113149]
[1766275106762,0.02469028,88432.0,88418.0,0.0113149]
[1766275106964,0.02832,88433.0,88418.0,0.0113149]
[1766275107169,0.02469028,88432.0,88418.0,0.0113149]
[1766275107472,0.02832,88433.0,88418.0,0.0113149]
[1766275107670,0.02469053,88432.0,88418.0,0.0113149]
[1766275107869,0.02832,88433.0,88418.0,0.0113149]
[1766275108072,0.02469053,88432.0,88418.0,0.0113149]
[1766275108371,0.02832,88433.0,88418.0,0.0113149]
[1766275108574,0.02469086,88432.0,88418.0,0.0113149]
[1766275108772,0.02832,88433.0,88418.0,0.0113149]
[1766275108970,0.02469086,88432.0,88418.0,0.0113149]
[1766275109270,0.02832,88433.0,88418.0,0.0113149]
[1766275109471,0.02469158,88432.0,88418.0,0.0113149]
[1766275109771,0.02832,88433.0,88418.0,0.0113149]
[1766275109971,0.02469158,88432.0,88418.0,0.0113149]
[1766275110271,0.02832,88433.0,88418.0,0.0113149]
[1766275110461,0.02469156,88432.0,88418.0,0.0113149]
[1766275110664,0.02832,88433.0,88418.0,0.0113149]
[1766275110863,0.02469156,88432.0,88418.0,0.0113149]
[1766275111077,0.02832,88433.0,88418.0,0.0113149]
[1766275111273,0.02469153,88432.0,88418.0,0.0113149]
[1766275111473,0.02832,88433.0,88418.0,0.0113149]
[1766275111665,0.02469153,88432.0,88418.0,0.0113149]
[1766275111865,0.02832,88433.0,88418.0,0.0113149]
[1766275112070,0.02469153,88432.0,88418.0,0.0113149]
[1766275112271,0.02832,88433.0,88418.0,0.0113149]
[1766275112473,0.02469151,88432.0,88418.0,0.0113149]
[1766275112672,0.02832,88433.0,88418.0,0.0113149]
[1766275112971,0.02469151,88432.0,88418.0,0.0113149]
[1766275113174,0.02832,88433.0,88418.0,0.0113149]
[1766275113373,0.02469149,88432.0,88418.0,0.0113149]
[1766275113575,0.02832,88433.0,88418.0,0.0113149]
[1766275113875,0.02469149,88432.0,88418.0,0.0113149]
[1766275114175,0.02469149,88431.0,88418.0,0.0113149]
[1766275114370,0.02832,88433.0,88418.0,0.0113149]
[1766275114571,0.02463682,88432.0,88418.0,0.0113149]
[1766275114872,0.02832,88433.0,88418.0,0.0113149]
[1766275115069,0.02463682,88432.0,88418.0,0.0113149]
[1766275115275,0.02832,88433.0,88418.0,0.0113149]
[1766275115476,0.02463682,88432.0,88418.0,0.0113149]
[1766275115775,0.02832,88433.0,88418.0,0.0113149]
[1766275115969,0.02463675,88432.0,88418.0,0.0113149]
[1766275116169,0.02463707,88431.0,88418.0,0.0113149]
[1766275116369,0.02832,88433.0,88418.0,0.0113149]
[1766275116670,0.02463685,88432.0,88418.0,0.0113149]
[1766275116870,0.02832,88433.0,88418.0,0.0113149]
[1766275116871,0.02463685,88431.0,88418.0,0.0113149]
[1766275117071,0.02832,88433.0,88418.0,0.0113149]
[1766275117268,0.02463653,88432.0,88418.0,0.0113149]
[1766275117470,0.02832,88433.0,88418.0,0.0113149]
[1766275117778,0.02463653,88432.0,88418.0,0.0113149]
[1766275117981,0.02832,88433.0,88418.0,0.0113149]
[1766275118282,0.02463653,88432.0,88418.0,0.0113149]
[1766275118479,0.00016961,88436.0,88418.0,0.0113149]
[1766275118781,0.05295653,88435.0,88418.0,0.0113149]
[1766275118977,0.02463653,88434.0,88418.0,0.0113149]
[1766275119176,0.02463653,88433.0,88418.0,0.0113149]
[1766275119478,0.02463653,88432.0,88418.0,0.0113149]
[1766275119775,0.02832,88435.0,88418.0,0.0113149]
[1766275119977,0.02463651,88434.0,88418.0,0.0113149]
[1766275120274,0.02463651,88433.0,88418.0,0.0113149]
[1766275120476,0.02463651,88432.0,88418.0,0.0113149]
[1766275120675,0.02832,88435.0,88418.0,0.0113149]
[1766275120876,0.02463649,88434.0,88418.0,0.0113149]
[1766275121075,0.02463649,88433.0,88418.0,0.0113149]
[1766275121277,0.02463649,88432.0,88418.0,0.0113149]
[1766275121476,0.02832,88435.0,88418.0,0.0113149]
[1766275121682,0.02463648,88434.0,88418.0,0.0113149]
[1766275121880,0.02463648,88433.0,88418.0,0.0113149]
[1766275122082,0.02463648,88432.0,88418.0,0.0113149]
[1766275122282,0.02463648,88431.0,88418.0,0.0113149]
[1766275122482,0.02832,88435.0,88418.0,0.0113149]
[1766275122681,0.02463623,88434.0,88418.0,0.0113149]
[1766275122879,0.02463623,88433.0,88418.0,0.0113149]
[1766275123085,0.02463623,88432.0,88418.0,0.0113149]
[1766275123285,0.02832,88435.0,88418.0,0.0113149]
[1766275123487,0.02463617,88434.0,88418.0,0.0113149]
[1766275123687,0.02463617,88433.0,88418.0,0.0113149]
[1766275123884,0.02463617,88432.0,88418.0,0.0113149]
[1766275124085,0.02832,88435.0,88418.0,0.0113149]
[1766275124387,0.02463612,88434.0,88418.0,0.0113149]
[1766275124586,0.02463612,88433.0,88418.0,0.0113149]
[1766275124885,0.02463612,88432.0,88418.0,0.0113149]
[1766275125086,0.02832,88435.0,88418.0,0.0113149]
[1766275125287,0.02463608,88434.0,88418.0,0.0113149]
[1766275125484,0.02463608,88433.0,88418.0,0.0113149]
[1766275125685,0.02463608,88432.0,88418.0,0.0113149]
[1766275125886,0.02832,88435.0,88418.0,0.0113149]
[1766275126095,0.02463608,88434.0,88418.0,0.0113149]
[1766275126293,0.02463608,88433.0,88418.0,0.0113149]
[1766275126494,0.02463608,88432.0,88418.0,0.0113149]
[1766275126696,0.02832,88435.0,88418.0,0.0113149]
[1766275126892,0.02463623,88434.0,88418.0,0.0113149]
[1766275127092,0.02463623,88433.0,88418.0,0.0113149]
[1766275127288,0.03594943,88432.0,88415.0,0.00016961]
[1766275127591,0.02463623,88431.0,88415.0,0.00016961]
[1766275142792,0.0113134,88430.0,88414.0,0.00848961]
[1766275143400,0.011313,88434.0,88414.0,0.00848961]
[1766275143600,0.02462796,88433.0,88414.0,0.00848961]
[1766275143802,0.02462796,88432.0,88415.0,0.00016961]
[1766275144098,0.03594126,88431.0,88415.0,0.00016961]
[1766275144298,0.02462796,88430.0,88415.0,0.00016961]
[1766275144702,0.0396329,88435.0,88415.0,0.00016961]
[1766275144902,0.02438904,88434.0,88415.0,0.00016961]
[1766275145102,0.02438904,88433.0,88415.0,0.00016961]
[1766275145402,0.02438904,88432.0,88415.0,0.00016961]
[1766275145737,0.02438904,88431.0,88415.0,0.00016961]
[1766275145948,0.02438904,88430.0,88415.0,0.00016961]
[1766275146101,0.0396329,88435.0,88415.0,0.00016961]
[1766275146303,0.02438872,88434.0,88415.0,0.00016961]
[1766275146503,0.02438872,88433.0,88415.0,0.00016961]
[1766275146807,0.02438872,88432.0,88415.0,0.00016961]
[1766275147007,0.02438872,88431.0,88415.0,0.00016961]
[1766275147209,0.02438872,88430.0,88415.0,0.00016961]
[1766275147409,0.0396329,88435.0,88415.0,0.00016961]
[1766275147610,0.02438861,88434.0,88415.0,0.00016961]
[1766275147805,0.02438861,88433.0,88415.0,0.00016961]
[1766275148007,0.02438861,88432.0,88415.0,0.00016961]
[1766275148208,0.02438861,88431.0,88415.0,0.00016961]
[1766275148508,0.02438861,88430.0,88415.0,0.00016961]
[1766275148806,0.0396329,88435.0,88415.0,0.00016961]
[1766275149006,0.02438879,88434.0,88415.0,0.01148491]
[1766275149212,0.02438879,88433.0,88415.0,0.01148491]
[1766275149408,0.02438879,88432.0,88415.0,0.01148491]
[1766275149597,0.02438879,88431.0,88415.0,0.01148491]
[1766275149801,0.0396329,88435.0,88415.0,0.01148491]
[1766275149802,0.02438879,88430.0,88415.0,0.01148491]
[1766275150005,0.0396329,88435.0,88415.0,0.01148491]
[1766275150210,0.02438906,88434.0,88415.0,0.01148491]
[1766275150411,0.02438906,88433.0,88415.0,0.01148491]
[1766275150713,0.02438906,88432.0,88415.0,0.00016961]
[1766275151011,0.02438906,88431.0,88414.0,0.00848961]
[1766275151210,0.02438906,88430.0,88414.0,0.00848961]
[1766275151410,0.17526831,88430.0,88414.0,0.00848961]
[1766275152510,0.0396329,88435.0,88414.0,0.00848961]
[1766275152810,0.17526831,88430.0,88414.0,0.00848961]
[1766275153612,0.00016961,88436.0,88414.0,0.00848961]
[1766275153801,0.05271081,88435.0,88419.0,0.0113148]
[1766275154005,0.02439081,88434.0,88419.0,0.0113148]
[1766275154206,0.02439081,88433.0,88419.0,0.0113148]
[1766275154404,0.02439081,88432.0,88419.0,0.0113148]
[1766275154610,0.02832,88435.0,88419.0,0.0113148]
[1766275154812,0.02439111,88434.0,88419.0,0.0113148]
[1766275155013,0.02439111,88433.0,88419.0,0.0113148]
[1766275155213,0.02439111,88432.0,88419.0,0.0113148]